bitfinex/quotes_SOLUSD_20241010
["timestamp","ask_amount","ask_price","bid_price","bid_amount"]
[1728526780561,7.1624,139.62,139.59,1.43261063]
[1728526780921,7.1624,139.62,139.57,28.5304]
[1728526780922,24.027864,139.65,139.57,21.3657]
[1728526781224,7.1633,139.6,139.57,21.3657]
[1728526781623,7.1629,139.61,139.57,21.3657]
[1728526791152,7.1629,139.61,139.58,1.43260703]
[1728526791460,7.1629,139.61,139.57,28.5305]
[1728526793261,7.1634,139.6,139.57,21.3657]
[1728526793566,7.1634,139.6,139.56,7.1652]
[1728526796266,7.1634,139.6,139.57,1.43269085]
[1728526796563,7.1629,139.61,139.57,8.59739085]
[1728526799576,7.1623,139.62,139.58,7.1642]
[1728526799743,0.12549,139.63,139.59,1.4325046]
[1728526799939,7.1619,139.63,139.59,8.5962046]
[1728526800849,7.1619,139.63,139.6,1.43245073]
[1728526802768,0.12549,139.64,139.6,1.43245073]
[1728526802973,15.9722,139.69,139.61,7.1627]
[1728526803267,15.9722,139.69,139.62,1.43215407]
[1728526803565,7.1606,139.66,139.62,1.43215407]
[1728526804073,15.9722,139.69,139.62,1.43215407]
[1728526804255,7.1608,139.65,139.62,1.43215407]
[1728526808771,7.1603,139.66,139.62,1.43215407]
[1728526810652,7.1603,139.66,139.62,8.59435407]
[1728526814158,7.1603,139.66,139.62,7.1622]
[1728526816488,7.1603,139.66,139.63,1.43206416]
[1728526817391,0.25098,139.68,139.63,1.43206416]
[1728526817690,7.1598,139.67,139.63,8.59356416]
[1728526819488,7.1592,139.68,139.64,7.1612]
[1728526819699,7.1592,139.68,139.65,1.43192713]
[1728526820488,0.25098,139.69,139.65,1.43192713]
[1728526820686,33.7605,139.73,139.66,1.43193483]
[1728526820877,33.7605,139.73,139.64,29.8416]
[1728526821077,7.1591,139.69,139.64,29.8416]
[1728526823474,7.1591,139.69,139.65,1.43173197]
[1728526823877,7.1591,139.69,139.64,29.8416]
[1728526824676,7.1591,139.69,139.65,1.43172866]
[1728526824889,7.1576,139.71,139.67,7.1597]
[1728526825102,33.3347,139.76,139.68,1.43150811]
[1728526825269,7.1572,139.72,139.68,1.43150811]
[1728526827088,7.1572,139.72,139.68,7.1591]
[1728526827292,7.1583,139.7,139.65,17.9012]
[1728526827475,7.1583,139.7,139.66,7.1601]
[1728526832277,17.8908,139.74,139.65,17.9012]
[1728526832278,7.1588,139.69,139.65,17.9012]
[1728526834291,7.1596,139.68,139.64,22.6807]
[1728526834499,7.1596,139.68,139.64,29.8417]
[1728526834679,17.8934,139.72,139.64,29.8417]
[1728526834874,7.1588,139.69,139.64,29.8417]
[1728526836607,7.1588,139.69,139.65,8.59243391]
[1728526837287,7.1588,139.69,139.65,7.1607]
[1728526837704,7.1588,139.69,139.66,1.43173482]
[1728526841984,7.1588,139.69,139.65,7.1607]
[1728526846622,7.1599,139.67,139.64,40.5834]
[1728526846915,7.1604,139.66,139.62,7.1621]
[1728526847497,17.8958,139.7,139.62,7.1621]
[1728526847701,7.1598,139.67,139.62,7.1621]
[1728526849413,0.12549,139.69,139.62,7.1621]
[1728526849613,7.1603,139.66,139.62,7.1621]
[1728526850209,7.1609,139.65,139.61,17.906]
[1728526851606,7.1609,139.65,139.61,25.0687]
[1728526852312,7.1609,139.65,139.6,22.3784]
[1728526852313,0.12549,139.69,139.6,22.3784]
[1728526852511,7.1617,139.64,139.6,22.3784]
[1728526855316,7.1624,139.62,139.58,25.0743]
[1728526855905,40.246764,139.67,139.58,25.0743]
[1728526856217,7.1619,139.63,139.58,25.0743]
[1728526858312,7.1619,139.63,139.59,7.1637]
[1728526860216,7.1619,139.63,139.6,1.43234522]
[1728526860713,7.1616,139.64,139.6,8.59554522]
[1728526860906,7.1616,139.64,139.6,7.1632]
[1728526861399,7.1616,139.64,139.61,1.43234118]
[1728526862528,7.1616,139.64,139.6,7.1632]
[1728526863528,7.1616,139.64,139.59,7.1636]
[1728526876415,7.1618,139.63,139.59,7.1636]
[1728526878444,17.9009,139.66,139.56,21.3522]
[1728526878614,24.027864,139.65,139.56,28.5174]
[1728526878817,7.1631,139.61,139.57,7.1648]
[1728526881609,7.1631,139.61,139.56,28.5174]
[1728526882730,7.1633,139.6,139.56,28.5174]
[1728526885635,24.027864,139.65,139.56,21.3522]
[1728526885823,24.027864,139.65,139.55,25.0797]
[1728526885824,7.1639,139.59,139.55,25.0797]
[1728526890244,7.1639,139.59,139.53,57.0718]
[1728526890245,7.1654,139.56,139.52,17.9175]
[1728526890420,7.1659,139.55,139.52,17.9175]
[1728526891531,7.1655,139.56,139.52,17.9175]
[1728526893245,7.1649,139.57,139.53,1.43316379]
[1728526893748,7.1645,139.58,139.53,8.59966379]
[1728526898942,7.1645,139.58,139.53,7.1665]
[1728526899243,0.25098,139.59,139.53,7.1665]
[1728526899448,7.1648,139.57,139.53,7.1665]
[1728526900941,7.1655,139.56,139.52,17.9175]
[1728526901148,7.1655,139.56,139.52,25.0849]
[1728526902445,0.12549,139.59,139.52,17.9175]
[1728526902630,7.1659,139.55,139.52,17.9175]
[1728526904646,7.1655,139.56,139.53,1.43317023]
[1728526908337,0.25098,139.59,139.53,8.59997023]
[1728526909249,7.1647,139.58,139.53,8.59997023]
[1728526913132,7.1647,139.58,139.54,7.1663]
[1728526913343,7.1634,139.6,139.55,1.43298691]
[1728526913748,7.1634,139.6,139.55,8.59838691]
[1728526914139,7.1638,139.59,139.55,8.59838691]
[1728526914835,7.1638,139.59,139.55,7.1654]
[1728526917666,7.1638,139.59,139.56,1.43279516]
[1728526918036,7.1634,139.6,139.56,1.43279516]
[1728526918239,0.25098,139.62,139.56,1.43279516]
[1728526918240,0.25098,139.62,139.56,19.34579516]
[1728526918435,17.9015,139.66,139.57,13.86786457]
[1728526918639,17.9015,139.66,139.58,1.43254716]
[1728526919453,7.1624,139.62,139.58,8.59644716]
[1728526921567,7.1619,139.63,139.59,7.1635]
[1728526921770,7.1619,139.63,139.6,1.43242118]
[1728526922076,7.1623,139.62,139.58,25.0745]
[1728526922247,7.1631,139.61,139.57,29.3834]
[1728526923055,0.25098,139.64,139.57,22.2187]
[1728526923259,7.1634,139.6,139.55,25.0796]
[1728526923452,18.15458,139.64,139.54,7.1662]
[1728526923453,7.1644,139.58,139.54,7.1662]
[1728526924572,0.12549,139.61,139.53,35.99426457]
[1728526924769,7.1639,139.59,139.55,8.59867865]
[1728526927570,7.28829,139.61,139.56,7.165]
[1728526927755,7.28829,139.61,139.57,1.43265595]
[1728526928460,0.12549,139.62,139.57,1.43265595]
[1728526928660,7.1618,139.63,139.58,7.1639]
[1728526928862,7.1618,139.63,139.59,1.43248165]
[1728526929356,7.1618,139.63,139.58,7.1639]
[1728526933248,7.1618,139.63,139.59,1.43249233]
[1728526933449,7.1618,139.63,139.58,7.1639]
[1728526934059,7.1618,139.63,139.59,1.43249226]
[1728526934371,7.1614,139.64,139.59,22.46415683]
[1728526934876,7.1614,139.64,139.59,8.59629226]
[1728526935581,7.1618,139.63,139.58,17.91]
[1728526935751,7.1618,139.63,139.58,25.0742]
[1728526936270,7.1624,139.62,139.58,25.0742]
[1728526945549,7.1628,139.61,139.57,29.5603]
[1728526946757,7.164,139.59,139.55,17.914]
[1728526948354,7.1648,139.57,139.53,29.581]
[1728526948662,7.28989,139.58,139.54,1.43305554]
[1728526948860,7.28989,139.58,139.53,29.581]
[1728526949380,7.28989,139.58,139.54,1.43305522]
[1728526950265,7.28989,139.58,139.53,29.581]
[1728526950857,7.28989,139.58,139.54,1.43305585]
[1728526955267,7.28989,139.58,139.54,8.59935585]
[1728526955463,0.12549,139.59,139.55,7.1655]
[1728526955777,7.1635,139.6,139.56,8.59818217]
[1728526957285,15.0213,139.65,139.57,13.86786457]
[1728526957484,7.1623,139.62,139.58,22.4643717]
[1728526957786,7.1623,139.62,139.58,15.3004717]
[1728526957997,7.1623,139.62,139.58,1.43260713]
[1728526958973,7.1623,139.62,139.57,21.03256457]
[1728526959565,7.1623,139.62,139.58,1.43267452]
[1728526961269,7.1623,139.62,139.57,21.03256457]
[1728526961800,7.1623,139.62,139.58,1.43267495]
[1728526966595,7.1623,139.62,139.57,7.1647]
[1728526966768,7.1623,139.62,139.58,1.43267639]
[1728526975474,7.1628,139.61,139.58,1.43267639]
[1728526976602,7.1628,139.61,139.57,7.1647]
[1728526978397,7.1628,139.61,139.58,1.43267829]
[1728526982283,7.1624,139.62,139.58,1.43267829]
[1728526982485,7.1624,139.62,139.57,7.1647]
[1728526985408,24.027864,139.64,139.57,7.1647]
[1728526985588,7.1629,139.61,139.57,7.1647]
[1728526990391,7.1629,139.61,139.58,1.43267781]
[1728526991209,0.12549,139.62,139.58,1.43267781]
[1728526991390,7.1624,139.62,139.59,1.4325959]
[1728526994021,7.1624,139.62,139.58,7.1642]
[1728526995911,7.1618,139.63,139.59,8.59599887]
[1728526996610,7.1613,139.64,139.6,7.1632]
[1728526996792,7.1608,139.65,139.61,1.43232357]
[1728526998709,7.1608,139.65,139.6,7.1632]
[1728526999906,44.027864,139.67,139.6,7.1632]
[1728527000097,7.1614,139.64,139.6,7.1632]
[1728527004418,7.1617,139.63,139.59,7.1637]
[1728527006726,7.1617,139.63,139.6,1.43243485]
[1728527010118,7.1613,139.64,139.6,1.43243485]
[1728527010303,7.1613,139.64,139.6,8.59563485]
[1728527011523,7.1613,139.64,139.6,7.1632]
[1728527013217,7.1619,139.63,139.59,7.1636]
[1728527013524,7.1619,139.63,139.58,31.77826457]
[1728527014426,7.1619,139.63,139.58,38.94216457]
[1728527014816,7.1623,139.62,139.58,25.0743]
[1728527015610,17.9025,139.65,139.57,21.6332]
[1728527015826,24.027864,139.64,139.55,17.9137]
[1728527016032,39.556464,139.64,139.55,17.9137]
[1728527016508,7.1634,139.6,139.55,25.0794]
[1728527016914,0.25098,139.62,139.55,17.9137]
[1728527017127,7.1639,139.59,139.55,17.9137]
[1728527018211,7.1639,139.59,139.55,25.0795]
[1728527021117,7.1639,139.59,139.55,17.9137]
[1728527023930,7.1639,139.59,139.56,1.43290966]
[1728527025825,7.28889,139.6,139.56,1.43290966]
[1728527027119,7.28889,139.6,139.55,38.94716457]
[1728527030447,7.28889,139.6,139.56,7.1653]
[1728527031433,7.164,139.59,139.55,25.0795]
[1728527033643,7.164,139.59,139.55,26.51237866]
[1728527034352,0.12549,139.59,139.55,25.0795]
[1728527036026,0.12549,139.59,139.56,1.43287712]
[1728527038353,0.25098,139.61,139.57,21.03266457]
[1728527038650,0.25098,139.61,139.58,1.43269897]
[1728527041852,0.25098,139.61,139.57,8.59752439]
[1728527042931,7.41378,139.61,139.57,8.59752439]
[1728527044051,0.25098,139.61,139.57,8.59752439]
[1728527045747,7.41388,139.61,139.57,8.59752439]
[1728527049938,0.25098,139.63,139.57,15.30058896]
[1728527050152,7.1623,139.62,139.58,7.1642]
[1728527050457,7.41278,139.63,139.59,1.43256348]
[1728527051135,0.25098,139.63,139.59,22.46382805]
[1728527051377,7.28629,139.65,139.6,7.1632]
[1728527051656,7.28629,139.65,139.61,1.43240025]
[1728527052244,0.12549,139.65,139.61,1.43240025]
[1728527052448,7.1613,139.64,139.61,1.43240025]
[1728527052647,7.1613,139.64,139.6,8.59559933]
[1728527052851,7.1613,139.64,139.59,26.505256]
[1728527053847,7.1613,139.64,139.59,25.0728]
[1728527054159,7.1613,139.64,139.59,26.50525621]
[1728527056755,7.1613,139.64,139.59,25.0728]
[1728527056949,0.12549,139.65,139.6,1.43245426]
[1728527057162,50.77226006,139.74,139.63,7.1617]
[1728527057163,32.19971853,139.71,139.63,7.1617]
[1728527057470,19.32836501,139.71,139.63,1.43214601]
[1728527057671,15.5809,139.71,139.63,1.43214601]
[1728527057877,15.5809,139.71,139.62,13.86786457]
[1728527057878,15.5809,139.71,139.61,31.77426457]
[1728527058371,7.1601,139.67,139.62,7.1622]
[1728527058543,7.1602,139.66,139.62,7.1622]
[1728527058741,7.1602,139.66,139.61,38.93696457]
[1728527058953,7.1602,139.66,139.61,25.0691]
[1728527059361,7.1602,139.66,139.62,1.432254]
[1728527061172,7.1602,139.66,139.61,25.0691]
[1728527062172,7.1602,139.66,139.62,1.43224361]
[1728527062647,7.1602,139.66,139.61,25.0691]
[1728527068674,0.12549,139.65,139.62,1.43227279]
[1728527070045,0.25098,139.65,139.61,25.0691]
[1728527073384,17.896,139.7,139.61,31.77426457]
[1728527073583,7.1588,139.69,139.65,17.9012]
[1728527075480,7.1572,139.72,139.67,7.1596]
[1728527075657,7.1572,139.72,139.68,1.43165809]
[1728527076260,15.7568,139.75,139.71,7.1571]
[1728527076563,16.5068,139.78,139.7,17.8943]
[1728527076769,7.156,139.75,139.7,26.48385607]
[1728527076959,16.5068,139.78,139.7,17.8943]
[1728527077176,7.1561,139.74,139.7,17.8943]
[1728527078083,0.25098,139.73,139.7,17.8943]
[1728527078673,0.25098,139.73,139.69,8.59006812]
[1728527078877,0.25098,139.73,139.69,7.1586]
[1728527079556,7.40768,139.73,139.69,7.1586]
[1728527082687,7.40768,139.73,139.68,8.59052802]
[1728527084075,7.1575,139.72,139.67,40.6294]
[1728527084769,0.25098,139.73,139.67,40.6294]
[1728527084974,7.1578,139.71,139.67,40.6294]
[1728527087093,7.1578,139.71,139.65,13.86786457]
[1728527087094,7.1582,139.7,139.65,7.1606]
[1728527096700,7.1587,139.69,139.65,7.1606]
[1728527096871,7.1587,139.69,139.64,24.1968]
[1728527097073,0.12549,139.72,139.64,31.358]
[1728527097074,7.1593,139.68,139.64,31.358]
[1728527097274,7.1593,139.68,139.64,24.1968]
[1728527097572,7.1598,139.67,139.64,6.294]
[1728527098593,7.1593,139.68,139.64,6.294]
[1728527100694,7.1593,139.68,139.64,13.4552]
[1728527100894,7.1593,139.68,139.65,1.43196496]
[1728527101493,7.1593,139.68,139.64,13.4552]
[1728527102582,7.1593,139.68,139.65,1.43196447]
[1728527103127,7.1582,139.7,139.65,1.43196447]
[1728527104496,7.1582,139.7,139.66,7.1602]
[1728527105102,7.1582,139.7,139.65,1.43196447]
[1728527105103,22.47602561,139.88,139.82,70.12549]
[1728527105398,36.11115459,140.02,139.92,7.1469]
[1728527105399,3.24,139.94,139.92,7.1469]
[1728527105598,0.8296479,139.97,139.86,7.45656579]
[1728527105782,0.8296479,139.97,139.87,17.8735]
[1728527106277,7.9741479,139.97,139.9,7.1478]
[1728527107079,7.9741479,139.97,139.91,24.41292323]
[1728527107401,7.1449,139.96,139.92,5.30715722]
[1728527107601,7.1449,139.96,139.87,25.0228]
[1728527107905,7.1449,139.96,139.88,21.17355876]
[1728527108091,7.1449,139.96,139.88,5.29338392]
[1728527108287,7.1449,139.96,139.89,5.29318509]
[1728527108488,7.1449,139.96,139.9,5.29318509]
[1728527108704,0.25098,139.95,139.91,5.29318509]
[1728527109003,7.1449,139.96,139.88,5.29338392]
[1728527109004,7.146,139.94,139.88,5.29338392]
[1728527109213,7.146,139.94,139.89,35.28408198]
[1728527109387,7.146,139.94,139.9,5.28408198]
[1728527109704,7.146,139.94,139.91,5.28408198]
[1728527109902,7.146,139.94,139.89,30.0]
[1728527110211,0.25098,139.96,139.89,30.0]
[1728527110383,7.1476,139.91,139.89,30.0]
[1728527110583,7.1476,139.91,139.86,7.45656579]
[1728527110911,7.148,139.9,139.87,30.0]
[1728527111377,0.12549,139.92,139.87,30.0]
[1728527111693,7.1475,139.91,139.87,30.0]
[1728527116010,7.1475,139.91,139.85,7.1503]
[1728527116308,7.1475,139.91,139.86,30.0]
[1728527117891,7.1485,139.89,139.86,30.0]
[1728527118217,7.1479,139.9,139.86,30.0]
[1728527120616,7.1485,139.89,139.86,30.0]
[1728527120917,0.12549,139.91,139.86,30.0]
[1728527121095,7.1485,139.89,139.86,30.0]
[1728527128992,7.1491,139.88,139.86,30.0]
[1728527130513,7.1494,139.87,139.86,30.0]
[1728527134528,29.912374,139.9,139.8,17.8823]
[1728527134737,29.912374,139.9,139.81,30.0]
[1728527134738,7.1505,139.85,139.81,30.0]
[1728527135431,7.1505,139.85,139.8,25.0349]
[1728527137424,7.151,139.84,139.8,25.0349]
[1728527138315,7.151,139.84,139.8,17.8823]
[1728527138636,7.151,139.84,139.79,7.1534]
[1728527138834,7.151,139.84,139.8,30.0]
[1728527139208,0.12549,139.87,139.8,30.0]
[1728527139542,7.1516,139.83,139.8,30.0]
[1728527139736,0.12549,139.87,139.8,30.0]
[1728527140039,7.1511,139.84,139.8,30.0]
[1728527140226,7.1511,139.84,139.79,7.1531]
[1728527140613,7.1511,139.84,139.79,20.0]
[1728527140813,7.1511,139.84,139.8,7.1529]
[1728527145214,7.1511,139.84,139.79,30.0]
[1728527146026,7.1511,139.84,139.79,37.1534]
[1728527148620,7.1511,139.84,139.79,7.1534]
[1728527148814,7.1511,139.84,139.8,1.43025184]
[1728527149137,7.1511,139.84,139.8,8.58325184]
[1728527151737,0.25098,139.88,139.81,30.0]
[1728527151945,7.1496,139.87,139.82,8.58182779]
[1728527152742,7.1496,139.87,139.82,38.58182779]
[1728527153143,7.15,139.86,139.82,31.43002779]
[1728527153344,7.15,139.86,139.82,30.0]
[1728527154439,7.1506,139.85,139.82,30.0]
[1728527155237,7.1506,139.85,139.82,31.43012849]
[1728527155825,7.1506,139.85,139.82,30.0]
[1728527158339,0.25098,139.88,139.82,30.0]
[1728527158545,7.1506,139.85,139.82,30.0]
[1728527159136,7.1506,139.85,139.81,25.033]
[1728527160432,7.1506,139.85,139.81,17.8806]
[1728527160745,7.1511,139.84,139.79,7.1534]
[1728527160944,7.1511,139.84,139.8,30.0]
[1728527161327,7.1511,139.84,139.79,7.1534]
[1728527162140,7.1511,139.84,139.8,1.43022644]
[1728527162341,7.1511,139.84,139.8,7.1529]
[1728527167338,7.1519,139.83,139.79,20.0]
[1728527168056,7.1519,139.83,139.79,27.1534]
[1728527168624,7.1519,139.83,139.8,1.4302992]
[1728527169430,0.25098,139.86,139.8,1.4302992]
[1728527169635,7.151,139.84,139.8,8.5827992]
[1728527170932,7.151,139.84,139.8,1.4302992]
[1728527172334,0.25098,139.84,139.75,40.6137]
[1728527172535,0.25098,139.84,139.76,33.90468111]
[1728527172536,7.153,139.8,139.76,33.90468111]
[1728527172742,7.1537,139.79,139.75,16.6487]
[1728527172926,7.1537,139.79,139.73,7.1563]
[1728527173130,7.1546,139.77,139.72,40.9965]
[1728527173342,33.119,139.83,139.72,34.5413]
[1728527173343,7.1551,139.76,139.72,34.5413]
[1728527173530,7.1546,139.77,139.72,34.5413]
[1728527173938,7.1551,139.76,139.72,34.5413]
[1728527174456,7.1551,139.76,139.71,7.1571]
[1728527178342,7.1556,139.75,139.7,20.0]
[1728527178538,7.1556,139.75,139.7,27.1579]
[1728527179760,7.1556,139.75,139.7,7.1579]
[1728527180855,7.1556,139.75,139.69,22.6895]
[1728527181251,0.12549,139.76,139.69,7.1586]
[1728527181434,7.1571,139.72,139.68,17.8967]
[1728527181638,7.1567,139.73,139.68,17.8967]
[1728527182845,7.1576,139.72,139.66,7.1602]
[1728527183035,7.1579,139.71,139.66,7.1602]
[1728527184562,0.25098,139.76,139.64,103.3464]
[1728527184563,7.1582,139.7,139.64,40.5071]
[1728527184743,7.1577,139.71,139.66,7.16]
[1728527184942,7.1577,139.71,139.67,1.43159912]
[1728527185839,7.1577,139.71,139.66,7.16]
[1728527188448,7.1577,139.71,139.64,47.10904937]
[1728527188449,7.1582,139.7,139.65,7.1606]
[1728527188971,7.1587,139.69,139.64,40.5076]
[1728527189864,16.0392,139.77,139.64,40.5076]
[1728527189865,7.1572,139.72,139.68,13.76264937]
[1728527190061,7.1546,139.77,139.72,20.0]
[1728527190252,22.8223,139.81,139.73,15.19392448]
[1728527190446,22.8223,139.81,139.73,13.6823338]
[1728527190653,22.8223,139.81,139.73,20.8389338]
[1728527191369,22.8223,139.81,139.73,8.58787511]
[1728527192063,24.027864,139.8,139.73,8.58787511]
[1728527192456,0.25098,139.78,139.73,8.58787511]
[1728527193752,0.25098,139.79,139.73,1.43127511]
[1728527193953,0.25098,139.79,139.71,7.1572]
[1728527194473,7.1558,139.75,139.7,17.8952]
[1728527194646,7.1558,139.75,139.7,25.0533]
[1728527194977,7.1563,139.74,139.69,7.1586]
[1728527195149,0.12549,139.73,139.69,7.1586]
[1728527199546,0.25098,139.73,139.68,20.0]
[1728527199751,0.25098,139.73,139.68,27.1591]
[1728527202647,0.25098,139.73,139.68,7.1591]
[1728527205188,0.25098,139.72,139.68,7.1591]
[1728527207288,7.40858,139.72,139.67,7.1596]
[1728527207763,0.25098,139.72,139.66,17.8993]
[1728527207961,7.1577,139.71,139.66,25.0594]
[1728527213983,7.1577,139.71,139.67,1.43166157]
[1728527214287,7.40818,139.72,139.68,11.16772536]
[1728527214477,7.40818,139.72,139.69,1.43154763]
[1728527215886,0.25098,139.73,139.69,8.59014763]
[1728527217488,7.1566,139.73,139.69,8.59014763]
[1728527218683,7.1566,139.73,139.69,1.43154763]
[1728527219989,7.1572,139.72,139.68,25.0563]
[1728527220564,7.1572,139.72,139.68,17.8973]
[1728527220971,0.25098,139.74,139.69,1.43149536]
[1728527221173,7.1567,139.73,139.69,8.58999536]
[1728527221490,7.1567,139.73,139.69,1.43149536]
[1728527222599,7.1572,139.72,139.69,1.43149536]
[1728527223216,0.25098,139.74,139.69,1.43149536]
[1728527223217,7.1567,139.73,139.69,1.43149536]
[1728527223493,7.1571,139.73,139.69,1.43149536]
[1728527223678,7.1571,139.73,139.68,25.0564]
[1728527224464,0.25098,139.74,139.68,25.0564]
[1728527224675,0.25098,139.74,139.67,8.59109426]
[1728527224990,0.25098,139.74,139.64,27.30162536]
[1728527224991,7.1582,139.7,139.65,17.9016]
[1728527226387,7.1582,139.7,139.65,25.0623]
[1728527228095,7.1587,139.69,139.65,17.9016]
[1728527230475,0.25098,139.68,139.64,16.1339]
[1728527230676,7.1593,139.68,139.63,7.1616]
[1728527231676,7.1598,139.67,139.63,7.1616]
[1728527232191,0.12549,139.66,139.59,17.9091]
[1728527232386,7.1617,139.63,139.59,17.9091]
[1728527232695,7.1613,139.64,139.59,25.0728]
[1728527234401,0.12549,139.63,139.59,17.9091]
[1728527235379,7.1613,139.64,139.6,1.43243159]
[1728527235686,0.12549,139.64,139.61,1.43234845]
[1728527235880,0.12549,139.64,139.6,7.1631]
[1728527238099,0.12549,139.65,139.61,8.59503964]
[1728527238510,0.12549,139.67,139.61,19.33803964]
[1728527238799,7.1597,139.67,139.62,7.1622]
[1728527239004,7.1597,139.67,139.63,1.43205201]
[1728527239179,7.1597,139.67,139.62,7.1622]
[1728527239777,7.1597,139.67,139.61,25.0684]
[1728527241014,7.1605,139.66,139.61,25.0684]
[1728527244612,21.706,139.69,139.62,15.22974177]
[1728527244792,21.706,139.69,139.63,7.1617]
[1728527245317,7.1596,139.68,139.63,7.1617]
[1728527246412,7.41118,139.67,139.61,38.86555647]
[1728527246614,7.1604,139.66,139.61,25.068]
[1728527246909,0.25098,139.67,139.61,17.9057]
[1728527247081,7.161,139.65,139.61,17.9057]
[1728527248609,7.1612,139.65,139.59,7.1638]
[1728527250289,7.1614,139.64,139.59,7.1638]
[1728527251616,7.1618,139.63,139.58,11.07481171]
[1728527251907,7.163,139.61,139.57,34.4084]
[1728527252086,18.02709,139.66,139.57,41.5732]
[1728527252411,7.1623,139.62,139.57,41.5732]
[1728527252625,23.15982751,139.73,139.61,13.79755647]
[1728527252922,21.913,139.73,139.66,13.79755647]
[1728527253090,21.913,139.73,139.67,1.43174352]
[1728527254211,21.913,139.73,139.66,7.1601]
[1728527254384,7.1576,139.71,139.66,7.1601]
[1728527255410,0.25098,139.7,139.65,25.0625]
[1728527255711,7.40918,139.7,139.65,25.0625]
[1728527257596,7.1587,139.69,139.64,20.95875647]
[1728527260995,7.40918,139.7,139.65,7.1605]
[1728527262606,7.40918,139.7,139.66,1.43178366]
[1728527263819,7.40918,139.7,139.65,7.1605]
[1728527267205,7.1577,139.71,139.67,7.1596]
[1728527267617,7.1577,139.71,139.68,1.43161042]
[1728527267922,7.40818,139.72,139.68,1.43161042]
[1728527269226,7.40818,139.72,139.67,7.1596]
[1728527269431,0.25098,139.72,139.65,31.69825647]
[1728527269615,7.1576,139.71,139.66,7.1601]
[1728527270005,7.1576,139.71,139.66,8.59171004]
[1728527271006,7.1576,139.71,139.66,1.43161004]
[1728527271206,7.1576,139.71,139.67,7.1596]
[1728527271406,7.40818,139.72,139.68,1.4315884]
[1728527272403,7.40818,139.72,139.67,7.1596]
[1728527272815,7.1577,139.71,139.67,7.1596]
[1728527273612,7.1577,139.71,139.66,7.1601]
[1728527277719,7.1584,139.7,139.65,25.0613]
[1728527278813,6.3838,139.76,139.69,13.79755647]
[1728527279019,6.3838,139.76,139.7,1.43145316]
[1728527279335,7.1566,139.73,139.69,1.43145818]
[1728527280332,7.40848,139.72,139.67,25.0577]
[1728527282110,7.1566,139.74,139.68,8.59065255]
[1728527282319,0.25098,139.73,139.68,8.59065255]
[1728527282915,7.40758,139.73,139.68,8.59065255]
[1728527284642,7.40758,139.73,139.68,7.1591]
[1728527288041,7.1552,139.76,139.71,13.79755647]
[1728527288217,16.3204,139.77,139.72,1.43114469]
[1728527288536,24.0813,139.8,139.72,1.43114469]
[1728527288724,24.0813,139.8,139.73,7.1566]
[1728527289046,7.1544,139.78,139.74,1.43099539]
[1728527289638,0.25098,139.77,139.74,1.43099539]
[1728527291250,7.40558,139.77,139.73,1.43104894]
[1728527291420,0.25098,139.77,139.71,17.8931]
[1728527291833,0.25098,139.77,139.72,1.43112298]
[1728527292531,7.1552,139.76,139.71,25.0506]
[1728527293851,7.1557,139.75,139.71,25.0506]
[1728527294720,7.1552,139.76,139.71,25.0506]
[1728527296321,7.1552,139.76,139.72,1.43115572]
[1728527296522,0.12549,139.75,139.72,1.43115572]
[1728527296943,7.28079,139.76,139.72,8.58815572]
[1728527297323,7.28079,139.76,139.72,1.43115572]
[1728527299637,7.28079,139.76,139.71,25.0507]
[1728527300046,7.28079,139.76,139.72,1.43120028]
[1728527301247,7.28019,139.77,139.72,8.58800028]
[1728527301424,0.12549,139.77,139.73,7.1565]
[1728527301625,0.12549,139.77,139.74,1.43103826]